Workbook

Sheet Alternative Capital
B1: Alternative Capital Analysis
B2: Name of Insurer:
B3: Structure of the Insurer:
B4: For the Year-Ending:
B6: Enter Number of Rows required | C6: 5
B7: (Maximum of 1,500 Rows available)
B8: A) Transaction Details
B9: All monetary figures must be reported in Units and in United States Dollars
B10: Name of Cedant | C10: Type of coverage | D10: Statutory Line of Business Written | E10: Location of Coverage | F10: Aggregate Maximum Limit as at Inception Date | G10: Net Aggregate Maximum Limit at the end of Financial Year | H10: Inception Date of Cover Period (DD/MM/YYYY) | I10: Effective Date of Contract (DD/MM/YYYY) | J10: Expiry Date of Cover Period (DD/MM/YYYY) | K10: Gross Premium Written for the Cover Period | L10: Net Premium Written for the Cover Period | M10: Aggregate Losses Outstanding at the Beginning of the Financial Year | N10: Aggregate Losses Incurred During the Financial Year | O10: Aggregate Losses Outstanding at the End of the Financial Year | P10: Reserved Buffer Collateral | Q10: Currency of Exposure | R10: Nature of Collateral | S10: Average Collateral Rating | T10: Amount of Collateral | U10: Additional Comments (Optional/If Necessary)
A11: 1 | C11: Select from Drop Down | D11: Select from Drop Down | E11: Select from Drop Down | Q11: Select from Drop Down | R11: Select from Drop Down | S11: Select from Drop Down
A12: =A11+1 -> 2 | C12: Select from Drop Down | D12: Select from Drop Down | E12: Select from Drop Down | Q12: Select from Drop Down | R12: Select from Drop Down | S12: Select from Drop Down
A13: =A12+1 -> 3 | C13: Select from Drop Down | D13: Select from Drop Down | E13: Select from Drop Down | Q13: Select from Drop Down | R13: Select from Drop Down | S13: Select from Drop Down
A14: 4 | C14: Select from Drop Down | D14: Select from Drop Down | E14: Select from Drop Down | Q14: Select from Drop Down | R14: Select from Drop Down | S14: Select from Drop Down
A15: 5 | C15: Select from Drop Down | D15: Select from Drop Down | E15: Select from Drop Down | Q15: Select from Drop Down | R15: Select from Drop Down | S15: Select from Drop Down
A16: 6 | C16: Select from Drop Down | D16: Select from Drop Down | E16: Select from Drop Down | Q16: Select from Drop Down | R16: Select from Drop Down | S16: Select from Drop Down
A17: 7 | C17: Select from Drop Down | D17: Select from Drop Down | E17: Select from Drop Down | Q17: Select from Drop Down | R17: Select from Drop Down | S17: Select from Drop Down
A18: 8 | C18: Select from Drop Down | D18: Select from Drop Down | E18: Select from Drop Down | Q18: Select from Drop Down | R18: Select from Drop Down | S18: Select from Drop Down
A19: 9 | C19: Select from Drop Down | D19: Select from Drop Down | E19: Select from Drop Down | Q19: Select from Drop Down | R19: Select from Drop Down | S19: Select from Drop Down
A20: 10 | C20: Select from Drop Down | D20: Select from Drop Down | E20: Select from Drop Down | Q20: Select from Drop Down | R20: Select from Drop Down | S20: Select from Drop Down
A21: 11 | C21: Select from Drop Down | D21: Select from Drop Down | E21: Select from Drop Down | Q21: Select from Drop Down | R21: Select from Drop Down | S21: Select from Drop Down
A22: 12 | C22: Select from Drop Down | D22: Select from Drop Down | E22: Select from Drop Down | Q22: Select from Drop Down | R22: Select from Drop Down | S22: Select from Drop Down
A23: 13 | C23: Select from Drop Down | D23: Select from Drop Down | E23: Select from Drop Down | Q23: Select from Drop Down | R23: Select from Drop Down | S23: Select from Drop Down
A24: 14 | C24: Select from Drop Down | D24: Select from Drop Down | E24: Select from Drop Down | Q24: Select from Drop Down | R24: Select from Drop Down | S24: Select from Drop Down
A25: 15 | C25: Select from Drop Down | D25: Select from Drop Down | E25: Select from Drop Down | Q25: Select from Drop Down | R25: Select from Drop Down | S25: Select from Drop Down
A26: 16 | C26: Select from Drop Down | D26: Select from Drop Down | E26: Select from Drop Down | Q26: Select from Drop Down | R26: Select from Drop Down | S26: Select from Drop Down
A27: 17 | C27: Select from Drop Down | D27: Select from Drop Down | E27: Select from Drop Down | Q27: Select from Drop Down | R27: Select from Drop Down | S27: Select from Drop Down
A28: 18 | C28: Select from Drop Down | D28: Select from Drop Down | E28: Select from Drop Down | Q28: Select from Drop Down | R28: Select from Drop Down | S28: Select from Drop Down
A29: 19 | C29: Select from Drop Down | D29: Select from Drop Down | E29: Select from Drop Down | Q29: Select from Drop Down | R29: Select from Drop Down | S29: Select from Drop Down
A30: 20 | C30: Select from Drop Down | D30: Select from Drop Down | E30: Select from Drop Down | Q30: Select from Drop Down | R30: Select from Drop Down | S30: Select from Drop Down
A31: 21 | C31: Select from Drop Down | D31: Select from Drop Down | E31: Select from Drop Down | Q31: Select from Drop Down | R31: Select from Drop Down | S31: Select from Drop Down
A32: 22 | C32: Select from Drop Down | D32: Select from Drop Down | E32: Select from Drop Down | Q32: Select from Drop Down | R32: Select from Drop Down | S32: Select from Drop Down
A33: 23 | C33: Select from Drop Down | D33: Select from Drop Down | E33: Select from Drop Down | Q33: Select from Drop Down | R33: Select from Drop Down | S33: Select from Drop Down
A34: 24 | C34: Select from Drop Down | D34: Select from Drop Down | E34: Select from Drop Down | Q34: Select from Drop Down | R34: Select from Drop Down | S34: Select from Drop Down
A35: 25 | C35: Select from Drop Down | D35: Select from Drop Down | E35: Select from Drop Down | Q35: Select from Drop Down | R35: Select from Drop Down | S35: Select from Drop Down
A36: 26 | C36: Select from Drop Down | D36: Select from Drop Down | E36: Select from Drop Down | Q36: Select from Drop Down | R36: Select from Drop Down | S36: Select from Drop Down
A37: 27 | C37: Select from Drop Down | D37: Select from Drop Down | E37: Select from Drop Down | Q37: Select from Drop Down | R37: Select from Drop Down | S37: Select from Drop Down
A38: 28 | C38: Select from Drop Down | D38: Select from Drop Down | E38: Select from Drop Down | Q38: Select from Drop Down | R38: Select from Drop Down | S38: Select from Drop Down
A39: 29 | C39: Select from Drop Down | D39: Select from Drop Down | E39: Select from Drop Down | Q39: Select from Drop Down | R39: Select from Drop Down | S39: Select from Drop Down
A40: 30 | C40: Select from Drop Down | D40: Select from Drop Down | E40: Select from Drop Down | Q40: Select from Drop Down | R40: Select from Drop Down | S40: Select from Drop Down
A41: 31 | C41: Select from Drop Down | D41: Select from Drop Down | E41: Select from Drop Down | Q41: Select from Drop Down | R41: Select from Drop Down | S41: Select from Drop Down
A42: 32 | C42: Select from Drop Down | D42: Select from Drop Down | E42: Select from Drop Down | Q42: Select from Drop Down | R42: Select from Drop Down | S42: Select from Drop Down
A43: 33 | C43: Select from Drop Down | D43: Select from Drop Down | E43: Select from Drop Down | Q43: Select from Drop Down | R43: Select from Drop Down | S43: Select from Drop Down
A44: 34 | C44: Select from Drop Down | D44: Select from Drop Down | E44: Select from Drop Down | Q44: Select from Drop Down | R44: Select from Drop Down | S44: Select from Drop Down
A45: 35 | C45: Select from Drop Down | D45: Select from Drop Down | E45: Select from Drop Down | Q45: Select from Drop Down | R45: Select from Drop Down | S45: Select from Drop Down
A46: 36 | C46: Select from Drop Down | D46: Select from Drop Down | E46: Select from Drop Down | Q46: Select from Drop Down | R46: Select from Drop Down | S46: Select from Drop Down
A47: 37 | C47: Select from Drop Down | D47: Select from Drop Down | E47: Select from Drop Down | Q47: Select from Drop Down | R47: Select from Drop Down | S47: Select from Drop Down
A48: 38 | C48: Select from Drop Down | D48: Select from Drop Down | E48: Select from Drop Down | Q48: Select from Drop Down | R48: Select from Drop Down | S48: Select from Drop Down
A49: 39 | C49: Select from Drop Down | D49: Select from Drop Down | E49: Select from Drop Down | Q49: Select from Drop Down | R49: Select from Drop Down | S49: Select from Drop Down
A50: 40 | C50: Select from Drop Down | D50: Select from Drop Down | E50: Select from Drop Down | Q50: Select from Drop Down | R50: Select from Drop Down | S50: Select from Drop Down
A51: 41 | C51: Select from Drop Down | D51: Select from Drop Down | E51: Select from Drop Down | Q51: Select from Drop Down | R51: Select from Drop Down | S51: Select from Drop Down
A52: 42 | C52: Select from Drop Down | D52: Select from Drop Down | E52: Select from Drop Down | Q52: Select from Drop Down | R52: Select from Drop Down | S52: Select from Drop Down
A53: 43 | C53: Select from Drop Down | D53: Select from Drop Down | E53: Select from Drop Down | Q53: Select from Drop Down | R53: Select from Drop Down | S53: Select from Drop Down
A54: 44 | C54: Select from Drop Down | D54: Select from Drop Down | E54: Select from Drop Down | Q54: Select from Drop Down | R54: Select from Drop Down | S54: Select from Drop Down
A55: 45 | C55: Select from Drop Down | D55: Select from Drop Down | E55: Select from Drop Down | Q55: Select from Drop Down | R55: Select from Drop Down | S55: Select from Drop Down
A56: 46 | C56: Select from Drop Down | D56: Select from Drop Down | E56: Select from Drop Down | Q56: Select from Drop Down | R56: Select from Drop Down | S56: Select from Drop Down
A57: 47 | C57: Select from Drop Down | D57: Select from Drop Down | E57: Select from Drop Down | Q57: Select from Drop Down | R57: Select from Drop Down | S57: Select from Drop Down
A58: 48 | C58: Select from Drop Down | D58: Select from Drop Down | E58: Select from Drop Down | Q58: Select from Drop Down | R58: Select from Drop Down | S58: Select from Drop Down
A59: 49 | C59: Select from Drop Down | D59: Select from Drop Down | E59: Select from Drop Down | Q59: Select from Drop Down | R59: Select from Drop Down | S59: Select from Drop Down
A60: 50 | C60: Select from Drop Down | D60: Select from Drop Down | E60: Select from Drop Down | Q60: Select from Drop Down | R60: Select from Drop Down | S60: Select from Drop Down
A61: 51 | C61: Select from Drop Down | D61: Select from Drop Down | E61: Select from Drop Down | Q61: Select from Drop Down | R61: Select from Drop Down | S61: Select from Drop Down
A62: 52 | C62: Select from Drop Down | D62: Select from Drop Down | E62: Select from Drop Down | Q62: Select from Drop Down | R62: Select from Drop Down | S62: Select from Drop Down
A63: 53 | C63: Select from Drop Down | D63: Select from Drop Down | E63: Select from Drop Down | Q63: Select from Drop Down | R63: Select from Drop Down | S63: Select from Drop Down
A64: 54 | C64: Select from Drop Down | D64: Select from Drop Down | E64: Select from Drop Down | Q64: Select from Drop Down | R64: Select from Drop Down | S64: Select from Drop Down
A65: 55 | C65: Select from Drop Down | D65: Select from Drop Down | E65: Select from Drop Down | Q65: Select from Drop Down | R65: Select from Drop Down | S65: Select from Drop Down
A66: 56 | C66: Select from Drop Down | D66: Select from Drop Down | E66: Select from Drop Down | Q66: Select from Drop Down | R66: Select from Drop Down | S66: Select from Drop Down
A67: 57 | C67: Select from Drop Down | D67: Select from Drop Down | E67: Select from Drop Down | Q67: Select from Drop Down | R67: Select from Drop Down | S67: Select from Drop Down
A68: 58 | C68: Select from Drop Down | D68: Select from Drop Down | E68: Select from Drop Down | Q68: Select from Drop Down | R68: Select from Drop Down | S68: Select from Drop Down
A69: 59 | C69: Select from Drop Down | D69: Select from Drop Down | E69: Select from Drop Down | Q69: Select from Drop Down | R69: Select from Drop Down | S69: Select from Drop Down
A70: 60 | C70: Select from Drop Down | D70: Select from Drop Down | E70: Select from Drop Down | Q70: Select from Drop Down | R70: Select from Drop Down | S70: Select from Drop Down
A71: 61 | C71: Select from Drop Down | D71: Select from Drop Down | E71: Select from Drop Down | Q71: Select from Drop Down | R71: Select from Drop Down | S71: Select from Drop Down
A72: 62 | C72: Select from Drop Down | D72: Select from Drop Down | E72: Select from Drop Down | Q72: Select from Drop Down | R72: Select from Drop Down | S72: Select from Drop Down
A73: 63 | C73: Select from Drop Down | D73: Select from Drop Down | E73: Select from Drop Down | Q73: Select from Drop Down | R73: Select from Drop Down | S73: Select from Drop Down
A74: 64 | C74: Select from Drop Down | D74: Select from Drop Down | E74: Select from Drop Down | Q74: Select from Drop Down | R74: Select from Drop Down | S74: Select from Drop Down
A75: 65 | C75: Select from Drop Down | D75: Select from Drop Down | E75: Select from Drop Down | Q75: Select from Drop Down | R75: Select from Drop Down | S75: Select from Drop Down
A76: 66 | C76: Select from Drop Down | D76: Select from Drop Down | E76: Select from Drop Down | Q76: Select from Drop Down | R76: Select from Drop Down | S76: Select from Drop Down
A77: =A76+1 -> 67 | C77: Select from Drop Down | D77: Select from Drop Down | E77: Select from Drop Down | Q77: Select from Drop Down | R77: Select from Drop Down | S77: Select from Drop Down
A78: 68 | C78: Select from Drop Down | D78: Select from Drop Down | E78: Select from Drop Down | Q78: Select from Drop Down | R78: Select from Drop Down | S78: Select from Drop Down
A79: 69 | C79: Select from Drop Down | D79: Select from Drop Down | E79: Select from Drop Down | Q79: Select from Drop Down | R79: Select from Drop Down | S79: Select from Drop Down
A80: 70 | C80: Select from Drop Down | D80: Select from Drop Down | E80: Select from Drop Down | Q80: Select from Drop Down | R80: Select from Drop Down | S80: Select from Drop Down
A81: 71 | C81: Select from Drop Down | D81: Select from Drop Down | E81: Select from Drop Down | Q81: Select from Drop Down | R81: Select from Drop Down | S81: Select from Drop Down
A82: 72 | C82: Select from Drop Down | D82: Select from Drop Down | E82: Select from Drop Down | Q82: Select from Drop Down | R82: Select from Drop Down | S82: Select from Drop Down
A83: 73 | C83: Select from Drop Down | D83: Select from Drop Down | E83: Select from Drop Down | Q83: Select from Drop Down | R83: Select from Drop Down | S83: Select from Drop Down
A84: 74 | C84: Select from Drop Down | D84: Select from Drop Down | E84: Select from Drop Down | Q84: Select from Drop Down | R84: Select from Drop Down | S84: Select from Drop Down
A85: 75 | C85: Select from Drop Down | D85: Select from Drop Down | E85: Select from Drop Down | Q85: Select from Drop Down | R85: Select from Drop Down | S85: Select from Drop Down
A86: 76 | C86: Select from Drop Down | D86: Select from Drop Down | E86: Select from Drop Down | Q86: Select from Drop Down | R86: Select from Drop Down | S86: Select from Drop Down
A87: 77 | C87: Select from Drop Down | D87: Select from Drop Down | E87: Select from Drop Down | Q87: Select from Drop Down | R87: Select from Drop Down | S87: Select from Drop Down
A88: 78 | C88: Select from Drop Down | D88: Select from Drop Down | E88: Select from Drop Down | Q88: Select from Drop Down | R88: Select from Drop Down | S88: Select from Drop Down
A89: 79 | C89: Select from Drop Down | D89: Select from Drop Down | E89: Select from Drop Down | Q89: Select from Drop Down | R89: Select from Drop Down | S89: Select from Drop Down
A90: 80 | C90: Select from Drop Down | D90: Select from Drop Down | E90: Select from Drop Down | Q90: Select from Drop Down | R90: Select from Drop Down | S90: Select from Drop Down
A91: 81 | C91: Select from Drop Down | D91: Select from Drop Down | E91: Select from Drop Down | Q91: Select from Drop Down | R91: Select from Drop Down | S91: Select from Drop Down
A92: 82 | C92: Select from Drop Down | D92: Select from Drop Down | E92: Select from Drop Down | Q92: Select from Drop Down | R92: Select from Drop Down | S92: Select from Drop Down
A93: 83 | C93: Select from Drop Down | D93: Select from Drop Down | E93: Select from Drop Down | Q93: Select from Drop Down | R93: Select from Drop Down | S93: Select from Drop Down
A94: 84 | C94: Select from Drop Down | D94: Select from Drop Down | E94: Select from Drop Down | Q94: Select from Drop Down | R94: Select from Drop Down | S94: Select from Drop Down
A95: 85 | C95: Select from Drop Down | D95: Select from Drop Down | E95: Select from Drop Down | Q95: Select from Drop Down | R95: Select from Drop Down | S95: Select from Drop Down
A96: 86 | C96: Select from Drop Down | D96: Select from Drop Down | E96: Select from Drop Down | Q96: Select from Drop Down | R96: Select from Drop Down | S96: Select from Drop Down
A97: 87 | C97: Select from Drop Down | D97: Select from Drop Down | E97: Select from Drop Down | Q97: Select from Drop Down | R97: Select from Drop Down | S97: Select from Drop Down
A98: 88 | C98: Select from Drop Down | D98: Select from Drop Down | E98: Select from Drop Down | Q98: Select from Drop Down | R98: Select from Drop Down | S98: Select from Drop Down
A99: 89 | C99: Select from Drop Down | D99: Select from Drop Down | E99: Select from Drop Down | Q99: Select from Drop Down | R99: Select from Drop Down | S99: Select from Drop Down
A100: 90 | C100: Select from Drop Down | D100: Select from Drop Down | E100: Select from Drop Down | Q100: Select from Drop Down | R100: Select from Drop Down | S100: Select from Drop Down
A101: 91 | C101: Select from Drop Down | D101: Select from Drop Down | E101: Select from Drop Down | Q101: Select from Drop Down | R101: Select from Drop Down | S101: Select from Drop Down
A102: 92 | C102: Select from Drop Down | D102: Select from Drop Down | E102: Select from Drop Down | Q102: Select from Drop Down | R102: Select from Drop Down | S102: Select from Drop Down
A103: 93 | C103: Select from Drop Down | D103: Select from Drop Down | E103: Select from Drop Down | Q103: Select from Drop Down | R103: Select from Drop Down | S103: Select from Drop Down
A104: 94 | C104: Select from Drop Down | D104: Select from Drop Down | E104: Select from Drop Down | Q104: Select from Drop Down | R104: Select from Drop Down | S104: Select from Drop Down
A105: 95 | C105: Select from Drop Down | D105: Select from Drop Down | E105: Select from Drop Down | Q105: Select from Drop Down | R105: Select from Drop Down | S105: Select from Drop Down
A106: 96 | C106: Select from Drop Down | D106: Select from Drop Down | E106: Select from Drop Down | Q106: Select from Drop Down | R106: Select from Drop Down | S106: Select from Drop Down
A107: 97 | C107: Select from Drop Down | D107: Select from Drop Down | E107: Select from Drop Down | Q107: Select from Drop Down | R107: Select from Drop Down | S107: Select from Drop Down
A108: 98 | C108: Select from Drop Down | D108: Select from Drop Down | E108: Select from Drop Down | Q108: Select from Drop Down | R108: Select from Drop Down | S108: Select from Drop Down
A109: 99 | C109: Select from Drop Down | D109: Select from Drop Down | E109: Select from Drop Down | Q109: Select from Drop Down | R109: Select from Drop Down | S109: Select from Drop Down
A110: 100 | C110: Select from Drop Down | D110: Select from Drop Down | E110: Select from Drop Down | Q110: Select from Drop Down | R110: Select from Drop Down | S110: Select from Drop Down
A111: 101 | C111: Select from Drop Down | D111: Select from Drop Down | E111: Select from Drop Down | Q111: Select from Drop Down | R111: Select from Drop Down | S111: Select from Drop Down
A112: 102 | C112: Select from Drop Down | D112: Select from Drop Down | E112: Select from Drop Down | Q112: Select from Drop Down | R112: Select from Drop Down | S112: Select from Drop Down
A113: 103 | C113: Select from Drop Down | D113: Select from Drop Down | E113: Select from Drop Down | Q113: Select from Drop Down | R113: Select from Drop Down | S113: Select from Drop Down
A114: 104 | C114: Select from Drop Down | D114: Select from Drop Down | E114: Select from Drop Down | Q114: Select from Drop Down | R114: Select from Drop Down | S114: Select from Drop Down
A115: 105 | C115: Select from Drop Down | D115: Select from Drop Down | E115: Select from Drop Down | Q115: Select from Drop Down | R115: Select from Drop Down | S115: Select from Drop Down
A116: 106 | C116: Select from Drop Down | D116: Select from Drop Down | E116: Select from Drop Down | Q116: Select from Drop Down | R116: Select from Drop Down | S116: Select from Drop Down
A117: 107 | C117: Select from Drop Down | D117: Select from Drop Down | E117: Select from Drop Down | Q117: Select from Drop Down | R117: Select from Drop Down | S117: Select from Drop Down
A118: 108 | C118: Select from Drop Down | D118: Select from Drop Down | E118: Select from Drop Down | Q118: Select from Drop Down | R118: Select from Drop Down | S118: Select from Drop Down
A119: 109 | C119: Select from Drop Down | D119: Select from Drop Down | E119: Select from Drop Down | Q119: Select from Drop Down | R119: Select from Drop Down | S119: Select from Drop Down
A120: 110 | C120: Select from Drop Down | D120: Select from Drop Down | E120: Select from Drop Down | Q120: Select from Drop Down | R120: Select from Drop Down | S120: Select from Drop Down
A121: 111 | C121: Select from Drop Down | D121: Select from Drop Down | E121: Select from Drop Down | Q121: Select from Drop Down | R121: Select from Drop Down | S121: Select from Drop Down
A122: 112 | C122: Select from Drop Down | D122: Select from Drop Down | E122: Select from Drop Down | Q122: Select from Drop Down | R122: Select from Drop Down | S122: Select from Drop Down
A123: 113 | C123: Select from Drop Down | D123: Select from Drop Down | E123: Select from Drop Down | Q123: Select from Drop Down | R123: Select from Drop Down | S123: Select from Drop Down
A124: 114 | C124: Select from Drop Down | D124: Select from Drop Down | E124: Select from Drop Down | Q124: Select from Drop Down | R124: Select from Drop Down | S124: Select from Drop Down
A125: 115 | C125: Select from Drop Down | D125: Select from Drop Down | E125: Select from Drop Down | Q125: Select from Drop Down | R125: Select from Drop Down | S125: Select from Drop Down
A126: 116 | C126: Select from Drop Down | D126: Select from Drop Down | E126: Select from Drop Down | Q126: Select from Drop Down | R126: Select from Drop Down | S126: Select from Drop Down
A127: 117 | C127: Select from Drop Down | D127: Select from Drop Down | E127: Select from Drop Down | Q127: Select from Drop Down | R127: Select from Drop Down | S127: Select from Drop Down
A128: 118 | C128: Select from Drop Down | D128: Select from Drop Down | E128: Select from Drop Down | Q128: Select from Drop Down | R128: Select from Drop Down | S128: Select from Drop Down
A129: 119 | C129: Select from Drop Down | D129: Select from Drop Down | E129: Select from Drop Down | Q129: Select from Drop Down | R129: Select from Drop Down | S129: Select from Drop Down
A130: 120 | C130: Select from Drop Down | D130: Select from Drop Down | E130: Select from Drop Down | Q130: Select from Drop Down | R130: Select from Drop Down | S130: Select from Drop Down
A131: 121 | C131: Select from Drop Down | D131: Select from Drop Down | E131: Select from Drop Down | Q131: Select from Drop Down | R131: Select from Drop Down | S131: Select from Drop Down
A132: 122 | C132: Select from Drop Down | D132: Select from Drop Down | E132: Select from Drop Down | Q132: Select from Drop Down | R132: Select from Drop Down | S132: Select from Drop Down
A133: 123 | C133: Select from Drop Down | D133: Select from Drop Down | E133: Select from Drop Down | Q133: Select from Drop Down | R133: Select from Drop Down | S133: Select from Drop Down
A134: 124 | C134: Select from Drop Down | D134: Select from Drop Down | E134: Select from Drop Down | Q134: Select from Drop Down | R134: Select from Drop Down | S134: Select from Drop Down
A135: 125 | C135: Select from Drop Down | D135: Select from Drop Down | E135: Select from Drop Down | Q135: Select from Drop Down | R135: Select from Drop Down | S135: Select from Drop Down
A136: 126 | C136: Select from Drop Down | D136: Select from Drop Down | E136: Select from Drop Down | Q136: Select from Drop Down | R136: Select from Drop Down | S136: Select from Drop Down
A137: 127 | C137: Select from Drop Down | D137: Select from Drop Down | E137: Select from Drop Down | Q137: Select from Drop Down | R137: Select from Drop Down | S137: Select from Drop Down
A138: 128 | C138: Select from Drop Down | D138: Select from Drop Down | E138: Select from Drop Down | Q138: Select from Drop Down | R138: Select from Drop Down | S138: Select from Drop Down
A139: 129 | C139: Select from Drop Down | D139: Select from Drop Down | E139: Select from Drop Down | Q139: Select from Drop Down | R139: Select from Drop Down | S139: Select from Drop Down
A140: 130 | C140: Select from Drop Down | D140: Select from Drop Down | E140: Select from Drop Down | Q140: Select from Drop Down | R140: Select from Drop Down | S140: Select from Drop Down
A141: =A140+1 -> 131 | C141: Select from Drop Down | D141: Select from Drop Down | E141: Select from Drop Down | Q141: Select from Drop Down | R141: Select from Drop Down | S141: Select from Drop Down
A142: 132 | C142: Select from Drop Down | D142: Select from Drop Down | E142: Select from Drop Down | Q142: Select from Drop Down | R142: Select from Drop Down | S142: Select from Drop Down
A143: 133 | C143: Select from Drop Down | D143: Select from Drop Down | E143: Select from Drop Down | Q143: Select from Drop Down | R143: Select from Drop Down | S143: Select from Drop Down
A144: 134 | C144: Select from Drop Down | D144: Select from Drop Down | E144: Select from Drop Down | Q144: Select from Drop Down | R144: Select from Drop Down | S144: Select from Drop Down
A145: 135 | C145: Select from Drop Down | D145: Select from Drop Down | E145: Select from Drop Down | Q145: Select from Drop Down | R145: Select from Drop Down | S145: Select from Drop Down
A146: 136 | C146: Select from Drop Down | D146: Select from Drop Down | E146: Select from Drop Down | Q146: Select from Drop Down | R146: Select from Drop Down | S146: Select from Drop Down
A147: 137 | C147: Select from Drop Down | D147: Select from Drop Down | E147: Select from Drop Down | Q147: Select from Drop Down | R147: Select from Drop Down | S147: Select from Drop Down
A148: 138 | C148: Select from Drop Down | D148: Select from Drop Down | E148: Select from Drop Down | Q148: Select from Drop Down | R148: Select from Drop Down | S148: Select from Drop Down
A149: 139 | C149: Select from Drop Down | D149: Select from Drop Down | E149: Select from Drop Down | Q149: Select from Drop Down | R149: Select from Drop Down | S149: Select from Drop Down
A150: 140 | C150: Select from Drop Down | D150: Select from Drop Down | E150: Select from Drop Down | Q150: Select from Drop Down | R150: Select from Drop Down | S150: Select from Drop Down
A151: 141 | C151: Select from Drop Down | D151: Select from Drop Down | E151: Select from Drop Down | Q151: Select from Drop Down | R151: Select from Drop Down | S151: Select from Drop Down
A152: 142 | C152: Select from Drop Down | D152: Select from Drop Down | E152: Select from Drop Down | Q152: Select from Drop Down | R152: Select from Drop Down | S152: Select from Drop Down
A153: 143 | C153: Select from Drop Down | D153: Select from Drop Down | E153: Select from Drop Down | Q153: Select from Drop Down | R153: Select from Drop Down | S153: Select from Drop Down
A154: 144 | C154: Select from Drop Down | D154: Select from Drop Down | E154: Select from Drop Down | Q154: Select from Drop Down | R154: Select from Drop Down | S154: Select from Drop Down
A155: 145 | C155: Select from Drop Down | D155: Select from Drop Down | E155: Select from Drop Down | Q155: Select from Drop Down | R155: Select from Drop Down | S155: Select from Drop Down
A156: 146 | C156: Select from Drop Down | D156: Select from Drop Down | E156: Select from Drop Down | Q156: Select from Drop Down | R156: Select from Drop Down | S156: Select from Drop Down
A157: 147 | C157: Select from Drop Down | D157: Select from Drop Down | E157: Select from Drop Down | Q157: Select from Drop Down | R157: Select from Drop Down | S157: Select from Drop Down
A158: 148 | C158: Select from Drop Down | D158: Select from Drop Down | E158: Select from Drop Down | Q158: Select from Drop Down | R158: Select from Drop Down | S158: Select from Drop Down
A159: 149 | C159: Select from Drop Down | D159: Select from Drop Down | E159: Select from Drop Down | Q159: Select from Drop Down | R159: Select from Drop Down | S159: Select from Drop Down
A160: 150 | C160: Select from Drop Down | D160: Select from Drop Down | E160: Select from Drop Down | Q160: Select from Drop Down | R160: Select from Drop Down | S160: Select from Drop Down
A161: 151 | C161: Select from Drop Down | D161: Select from Drop Down | E161: Select from Drop Down | Q161: Select from Drop Down | R161: Select from Drop Down | S161: Select from Drop Down
A162: 152 | C162: Select from Drop Down | D162: Select from Drop Down | E162: Select from Drop Down | Q162: Select from Drop Down | R162: Select from Drop Down | S162: Select from Drop Down
A163: 153 | C163: Select from Drop Down | D163: Select from Drop Down | E163: Select from Drop Down | Q163: Select from Drop Down | R163: Select from Drop Down | S163: Select from Drop Down
A164: 154 | C164: Select from Drop Down | D164: Select from Drop Down | E164: Select from Drop Down | Q164: Select from Drop Down | R164: Select from Drop Down | S164: Select from Drop Down
A165: 155 | C165: Select from Drop Down | D165: Select from Drop Down | E165: Select from Drop Down | Q165: Select from Drop Down | R165: Select from Drop Down | S165: Select from Drop Down
A166: 156 | C166: Select from Drop Down | D166: Select from Drop Down | E166: Select from Drop Down | Q166: Select from Drop Down | R166: Select from Drop Down | S166: Select from Drop Down
A167: 157 | C167: Select from Drop Down | D167: Select from Drop Down | E167: Select from Drop Down | Q167: Select from Drop Down | R167: Select from Drop Down | S167: Select from Drop Down
A168: 158 | C168: Select from Drop Down | D168: Select from Drop Down | E168: Select from Drop Down | Q168: Select from Drop Down | R168: Select from Drop Down | S168: Select from Drop Down
A169: 159 | C169: Select from Drop Down | D169: Select from Drop Down | E169: Select from Drop Down | Q169: Select from Drop Down | R169: Select from Drop Down | S169: Select from Drop Down
A170: 160 | C170: Select from Drop Down | D170: Select from Drop Down | E170: Select from Drop Down | Q170: Select from Drop Down | R170: Select from Drop Down | S170: Select from Drop Down
A171: 161 | C171: Select from Drop Down | D171: Select from Drop Down | E171: Select from Drop Down | Q171: Select from Drop Down | R171: Select from Drop Down | S171: Select from Drop Down
A172: 162 | C172: Select from Drop Down | D172: Select from Drop Down | E172: Select from Drop Down | Q172: Select from Drop Down | R172: Select from Drop Down | S172: Select from Drop Down
A173: 163 | C173: Select from Drop Down | D173: Select from Drop Down | E173: Select from Drop Down | Q173: Select from Drop Down | R173: Select from Drop Down | S173: Select from Drop Down
A174: 164 | C174: Select from Drop Down | D174: Select from Drop Down | E174: Select from Drop Down | Q174: Select from Drop Down | R174: Select from Drop Down | S174: Select from Drop Down
A175: 165 | C175: Select from Drop Down | D175: Select from Drop Down | E175: Select from Drop Down | Q175: Select from Drop Down | R175: Select from Drop Down | S175: Select from Drop Down
A176: 166 | C176: Select from Drop Down | D176: Select from Drop Down | E176: Select from Drop Down | Q176: Select from Drop Down | R176: Select from Drop Down | S176: Select from Drop Down
A177: 167 | C177: Select from Drop Down | D177: Select from Drop Down | E177: Select from Drop Down | Q177: Select from Drop Down | R177: Select from Drop Down | S177: Select from Drop Down
A178: 168 | C178: Select from Drop Down | D178: Select from Drop Down | E178: Select from Drop Down | Q178: Select from Drop Down | R178: Select from Drop Down | S178: Select from Drop Down
A179: 169 | C179: Select from Drop Down | D179: Select from Drop Down | E179: Select from Drop Down | Q179: Select from Drop Down | R179: Select from Drop Down | S179: Select from Drop Down
A180: 170 | C180: Select from Drop Down | D180: Select from Drop Down | E180: Select from Drop Down | Q180: Select from Drop Down | R180: Select from Drop Down | S180: Select from Drop Down
A181: 171 | C181: Select from Drop Down | D181: Select from Drop Down | E181: Select from Drop Down | Q181: Select from Drop Down | R181: Select from Drop Down | S181: Select from Drop Down
A182: 172 | C182: Select from Drop Down | D182: Select from Drop Down | E182: Select from Drop Down | Q182: Select from Drop Down | R182: Select from Drop Down | S182: Select from Drop Down
A183: 173 | C183: Select from Drop Down | D183: Select from Drop Down | E183: Select from Drop Down | Q183: Select from Drop Down | R183: Select from Drop Down | S183: Select from Drop Down
A184: 174 | C184: Select from Drop Down | D184: Select from Drop Down | E184: Select from Drop Down | Q184: Select from Drop Down | R184: Select from Drop Down | S184: Select from Drop Down
A185: 175 | C185: Select from Drop Down | D185: Select from Drop Down | E185: Select from Drop Down | Q185: Select from Drop Down | R185: Select from Drop Down | S185: Select from Drop Down
A186: 176 | C186: Select from Drop Down | D186: Select from Drop Down | E186: Select from Drop Down | Q186: Select from Drop Down | R186: Select from Drop Down | S186: Select from Drop Down
A187: 177 | C187: Select from Drop Down | D187: Select from Drop Down | E187: Select from Drop Down | Q187: Select from Drop Down | R187: Select from Drop Down | S187: Select from Drop Down
A188: 178 | C188: Select from Drop Down | D188: Select from Drop Down | E188: Select from Drop Down | Q188: Select from Drop Down | R188: Select from Drop Down | S188: Select from Drop Down
A189: 179 | C189: Select from Drop Down | D189: Select from Drop Down | E189: Select from Drop Down | Q189: Select from Drop Down | R189: Select from Drop Down | S189: Select from Drop Down
A190: 180 | C190: Select from Drop Down | D190: Select from Drop Down | E190: Select from Drop Down | Q190: Select from Drop Down | R190: Select from Drop Down | S190: Select from Drop Down
A191: 181 | C191: Select from Drop Down | D191: Select from Drop Down | E191: Select from Drop Down | Q191: Select from Drop Down | R191: Select from Drop Down | S191: Select from Drop Down
A192: 182 | C192: Select from Drop Down | D192: Select from Drop Down | E192: Select from Drop Down | Q192: Select from Drop Down | R192: Select from Drop Down | S192: Select from Drop Down
A193: 183 | C193: Select from Drop Down | D193: Select from Drop Down | E193: Select from Drop Down | Q193: Select from Drop Down | R193: Select from Drop Down | S193: Select from Drop Down
A194: 184 | C194: Select from Drop Down | D194: Select from Drop Down | E194: Select from Drop Down | Q194: Select from Drop Down | R194: Select from Drop Down | S194: Select from Drop Down
A195: 185 | C195: Select from Drop Down | D195: Select from Drop Down | E195: Select from Drop Down | Q195: Select from Drop Down | R195: Select from Drop Down | S195: Select from Drop Down
A196: 186 | C196: Select from Drop Down | D196: Select from Drop Down | E196: Select from Drop Down | Q196: Select from Drop Down | R196: Select from Drop Down | S196: Select from Drop Down
A197: 187 | C197: Select from Drop Down | D197: Select from Drop Down | E197: Select from Drop Down | Q197: Select from Drop Down | R197: Select from Drop Down | S197: Select from Drop Down
A198: 188 | C198: Select from Drop Down | D198: Select from Drop Down | E198: Select from Drop Down | Q198: Select from Drop Down | R198: Select from Drop Down | S198: Select from Drop Down
A199: 189 | C199: Select from Drop Down | D199: Select from Drop Down | E199: Select from Drop Down | Q199: Select from Drop Down | R199: Select from Drop Down | S199: Select from Drop Down
A200: 190 | C200: Select from Drop Down | D200: Select from Drop Down | E200: Select from Drop Down | Q200: Select from Drop Down | R200: Select from Drop Down | S200: Select from Drop Down
A201: 191 | C201: Select from Drop Down | D201: Select from Drop Down | E201: Select from Drop Down | Q201: Select from Drop Down | R201: Select from Drop Down | S201: Select from Drop Down
... 1351 more rows

Sheet Lines of Business (hidden)
A1: Special Purpose Insurers - Lines of Business
B4: General Business Lines of Business | C4: Sub Classes
A5: 1 | B5: Accident and Health, Travel, Personal Accident | C5: Accident and health, travel insurance, personal accident, medical expenses, patient hospital plans, Accident, Sickness and Unemployment (ASU), kidnap and ransom, dental, legal expenses
A6: 2 | B6: Agriculture | C6: Crop insurance, livestock, bloodstock, pet insurance
A7: 3 | B7: Aviation - Hull, Liability and War | C7: Aviation hull, aviation liability, aviation war, airside liability, satellite
A8: 4 | B8: Construction | C8: Contractors all risks, erection all risks,
A9: 5 | B9: Credit / Surety | C9: Credit insurance, surety bonds, municipal bonds, payment protection insurance, trade credit, collateral protection, credit cards
A10: 6 | B10: Crime and Fidelity | C10: Crime, fidelity
A11: 7 | B11: Cyber Risk | C11: Cyber, data protection, privacy and network security liability
A12: 8 | B12: Energy - Onshore and offshore | C12: Energy onshore, energy offshore, refinery, pipeline, rig and well,
A13: 9 | B13: Environmental Risk | C13: Environmental, pollution, environmental liability
A14: 10 | B14: General liability - Public, Products, Umbrella, Product recall | C14: Public liability, products liability, umbrella, product recall, employment practices liability, media liability
A15: 11 | B15: Marine - P&I, Cargo, Hull and Liability, War | C15: Marine hull, marine liability, protection and indemnity, specie, cargo, war and civil unrest, fine art, customer goods, storage
A16: 12 | B16: Medical Malpractice | C16: Hospital professional indemnity, surgeon professional indemnity, clinical trials, life sciences, managed care liability
A17: 13 | B17: Mortgage | C17: Mortgage indemnity,
A18: 14 | B18: Motor - APD and Liability | C18: Automobile physical damage, auto liability, non-standard auto insurance,
A19: 15 | B19: Political Risks | C19: Political risk, civil unrest
A20: 16 | B20: Professional Liability - Professional Indemnity, D&O, Bankers Blanket, E&O | C20: Professional indemnity, directors and officers, errors & omission, bankers blanket, management liability
A21: 17 | B21: Property and Casualty Catastrophe | C21: Property catastrophe, industry loss warranty, workers compensation catastrophe cover, flood
A22: 18 | B22: Property Damage and Business Interruption | C22: Property, business interruption, all risks, homeowners, boiler, mechanical breakdown, flood
A23: 19 | B23: Property Retrocession | C23: Retrocession reinsurance for property and property catastrophe
A24: 20 | B24: Finite Reinsurance | C24: Limited risk transfer contracts
A25: 21 | B25: Terrorism | C25: Terrorism,
A26: 22 | B26: Warranty, Residual Value | C26: Warranty, residual value, vehicle maintenance contracts, Guaranteed Asset Protection (GAP)
A27: 23 | B27: Workers Compensation/Employers Liability | C27: Workers compensation, employers liability, defense based act
B29: Long-Term Business Lines of Business | C29: Description
A30: 1 | B30: Mortality | C30: The risk of fluctuations or deterioration of mortality experience causing increased claims on life insurance coverages.
A31: 2 | B31: Critical Illness | C31: A form of accident and health insurance that pays a benefit if the person insured incurs a predefined major illness or injury.
A32: 3 | B32: Longevity | C32: The risk of fluctuations or improvements in mortality that cause benefits on payout annuities to be paid for longer than expected.
A33: 4 | B33: Deferred Annuities | C33: An insurance that provides savings or income benefits during the lifetime of the person insured or some limited period thereafter.
A34: 5 | B34: Disability Income: Active lives with premium guarantee of - | C34: An accident and health insurance that pays a benefit for a fixed period of time during disability, based on contracts that are for active lives and have a premium guarantee.
A35: 6 | B35: Disability Income: Actives lives for other accident and sickness | C35: An accident and health insurance that pays a benefit for a fixed period of time during disability based on contracts that are for active lives and are for other accident and sickness coverage.
A36: 7 | B36: Disability Income: Claims in payment | C36: An accident and health insurance that pays a benefit for a fixed period of time during disability based on contracts where claims in payment on waiver of premiums.
A37: 8 | B37: Disability Income: Claims in payment for other accident and sickness | C37: An accident and health insurance that pays a benefit for a fixed period of time during disability based on contracts where claims in payment on waiver of premiums based on contracts that are for active lives and are for other accident and sickness coverage.
A38: 9 | B38: Group Life | C38: Life insurance that is issued to persons insured through a group arrangement such as through an employer or association.
A39: 10 | B39: Group Disability | C39: Disability insurance that is issued to persons insured through a group arrangement such as through an employer or association.
A40: 11 | B40: Group Health | C40: Health insurance that is issued to persons insured through a group arrangement such as through an employer or association.
A41: 12 | B41: Stop Loss | C41: The risk that arises when total claims experience deteriorates or is more volatile than expected, thereby increasing the likelihood and amount by which actual claims experience exceeds a predefined level.
A42: 13 | B42: Rider | C42: The risk that arises when total claims experience deteriorates or is more volatile than expected, thereby increasing the likelihood and amount by which actual claims experience exceeds a predefined level.
A43: 14 | B43: Variable Annuities | C43: Insurance that provides a minimum investment guarantee on variable annuities.
